fUST/lending_fUST_20251230
["ID","MTS","AMOUNT","RATE_DAILY","PERIOD"]
[400037085,1767045052954,-5000.0,0.00027765,15]
[400037086,1767045052964,-5000.0,0.00027766,15]
[400037087,1767045052974,-15277.58765547,0.00027777,2]
[400037088,1767045052985,-5000.0,0.00027827,10]
[400037089,1767045052995,-4109.6866651,0.00027913,2]
[400037090,1767045053005,-6270.2904799,0.00027913,2]
[400037091,1767045053015,-155.66374006,0.00027925,2]
[400037092,1767045053025,-622.65496025,0.00027925,2]
[400037093,1767045053035,-1400.97366057,0.00027925,2]
[400037094,1767045053046,-2490.619841,0.00027925,2]
[400037095,1767045053057,-3891.59350157,0.00027925,2]
[400037096,1767045053068,-5603.89464226,0.00027925,2]
[400037097,1767045053078,-200.34230624,0.00027925,2]
[400037098,1767045053089,-801.36922498,0.00027925,2]
[400037099,1767045053098,-1803.0807562,0.00027925,2]
[400037100,1767045053108,-3205.47689991,0.00027925,2]
[400037101,1767045053119,-5008.55765611,0.00027925,2]
[400037102,1767045053130,-43552.6656259,0.00027938,2]
[400037103,1767045053140,-2600.3767643,0.00027938,2]
[400037104,1767045053150,-2314.81949326,0.00027939,2]
[400037105,1767045053247,-5000.0,0.00027944,5]
[400037106,1767045053258,-500.0,0.00027944,5]
[400037107,1767045053268,-500.0,0.00027944,5]
[400037108,1767045053278,-500.0,0.00027944,5]
[400037109,1767045053288,-500.0,0.00027944,5]
[400037110,1767045053298,-500.0,0.00027944,5]
[400037111,1767045053308,-500.0,0.00027944,5]
[400037112,1767045053318,-496.47127164,0.00027944,5]
[400037113,1767045053329,-2398.4119403,0.00027944,5]
[400037114,1767045053339,-500.0,0.00027944,5]
[400037115,1767045053349,-514.84070869,0.00027944,5]
[400037116,1767045053359,-2487.15318209,0.00027944,5]
[400037117,1767045053369,-500.0,0.00027944,5]
[400037118,1767045053378,-533.88981491,0.00027944,5]
[400037119,1767045053388,-2579.17784983,0.00027944,5]
[400037120,1767045053397,-500.0,0.00027944,5]
[400037121,1767045053407,-553.64373807,0.00027944,5]
[400037122,1767045053416,-2674.60743027,0.00027944,5]
[400037123,1767045053426,-500.0,0.00027944,5]
[400037124,1767045053436,-574.12855637,0.00027944,5]
[400037125,1767045053446,-500.0,0.00027944,5]
[400037126,1767045053455,-595.37131296,0.00027944,5]
[400037127,1767045053465,-500.0,0.00027944,5]
[400037128,1767045053475,-617.40005154,0.00027944,5]
[400037129,1767045053484,-500.0,0.00027944,5]
[400037130,1767045053493,-500.0,0.00027944,5]
[400037131,1767045053504,-500.0,0.00027944,5]
[400037132,1767045053514,-640.24385345,0.00027944,5]
[400037133,1767045053524,-500.0,0.00027944,5]
[400037134,1767045053533,-663.93287602,0.00027944,5]
[400037135,1767045053543,-643.34624238,0.00027944,5]
[400037136,1767045053552,-1354.10611933,0.00027945,2]
[400037137,1767045053562,-883.09652218,0.00027945,5]
[400037138,1767045053573,-502.9,0.00027945,2]
[400037139,1767045053583,-3528.85370261,0.00027945,5]
[400037140,1767045053593,-893.04,0.00027945,2]
[400037141,1767045053603,-983.498428,0.00027945,7]
[400037142,1767045053620,-983.498428,0.00027945,7]
[400037143,1767045053631,-983.498428,0.00027945,7]
[400037144,1767045053641,-983.498428,0.00027945,7]
[400037145,1767045053651,-151.0,0.00027945,7]
[400037146,1767045053661,-151.0,0.00027945,7]
[400037147,1767045053671,-151.0,0.00027945,7]
[400037148,1767045053681,-151.0,0.00027945,7]
[400037149,1767045053691,-209.378092,0.00027945,7]
[400037150,1767045053701,-209.378092,0.00027945,7]
[400037151,1767045053711,-209.378092,0.00027945,7]
[400037152,1767045053720,-209.378092,0.00027945,7]
[400037153,1767045053730,-172.576134,0.00027945,7]
[400037154,1767045053740,-671.16529374,0.00027945,5]
[400037155,1767045053750,-994.31,0.00027945,2]
[400037156,1767045053761,-4821.6,0.00027945,2]
[400037157,1767045053771,-501.1,0.00027945,2]
[400037158,1767045053782,-878.29,0.00027945,2]
[400037159,1767045053792,-680.8,0.00027945,2]
[400037160,1767045053803,-2681.97651377,0.00027945,5]
[400037161,1767045053814,-570.17,0.00027945,2]
[400037162,1767045053824,-1000.0,0.00027945,5]
[400037163,1767045053834,-250.0,0.00027945,5]
[400037164,1767045053844,-750.0,0.00027945,5]
[400037165,1767045053854,-250.0,0.00027945,5]
[400037166,1767045053864,-82483.47391239,0.0002798,7]
[400037167,1767045053874,-5000.0,0.00027999,2]
[400037168,1767045053884,-5000.0,0.00027999,15]
[400037169,1767045053894,-699521.45468847,0.00028,2]
[400037170,1767045054006,-2367.27954242,0.00028,2]
[400037171,1767045054017,-2590.01884851,0.00028,2]
[400037172,1767045054174,-500.0,0.00022191,2]
[400037173,1767045054183,-500.0,0.00022465,2]
[400037174,1767045054193,-500.0,0.00022739,2]
[400037175,1767045054203,-54.47805157,0.00023013,2]
[400037176,1767045054214,-445.52194843,0.00023013,2]
[400037177,1767045054223,-500.0,0.00023287,2]
[400037178,1767045054232,-500.0,0.00023561,2]
[400037179,1767045054242,-500.0,0.00023835,2]
[400037180,1767045054253,-500.0,0.00024109,2]
[400037181,1767045054264,-967.31,0.00026301,2]
[400037182,1767045054273,-967.31,0.00026575,2]
[400037183,1767045054284,-609.85805157,0.00026849,2]
[400037184,1767045054484,-188.02,0.00013993,2]
[400037185,1767045054495,-282.02,0.00014629,2]
[400037186,1767045054504,-376.03,0.00015265,2]
[400037187,1767045054514,-470.04,0.00015901,2]
[400037188,1767045054524,-564.05,0.00016537,2]
[400037189,1767045054535,-658.05,0.00017173,2]
[400037190,1767045054544,-752.06,0.00017809,2]
[400037191,1767045054554,-500.0,0.00024383,2]
[400037192,1767045054564,-184.357,0.00024577,2]
[400037193,1767045054573,-416.0,0.00024577,2]
[400037194,1767045054582,-3179.91,0.0002459,10]
[400037195,1767045054592,-500.0,0.00024657,2]
[400037196,1767045054601,-500.0,0.00024931,2]
[400037197,1767045054610,-367.93644023,0.00025205,2]
[400037198,1767045054619,-357.45194843,0.00026849,2]
[400037199,1767045054629,-967.31,0.00027123,2]
[400037200,1767045054638,-967.31,0.00027397,2]
[400037201,1767045054648,-416.0,0.00027577,2]
[400037202,1767045054658,-967.31,0.00027671,2]
[400037203,1767045054667,-967.31,0.00027945,2]
[400037204,1767045054676,-84362.60508844,0.00028,2]
[400037205,1767045054687,-8227.64559349,0.00028,2]
[400037206,1767045054698,-448.50501451,0.00028,2]
[400037207,1767045054735,-323.89483058,0.00028,2]
[400037209,1767045453898,1300.9417647,0.00012721,2]
[400037210,1767045672992,684.7229129,0.00012592,2]
[400037211,1767045731053,27047.7051239,0.00012581,2]
[400037212,1767045902679,5000.0,0.00013172,2]
[400037213,1767045920727,295.38,0.00012329,2]
[400037214,1767045927584,206.03497485,0.00013172,2]
[400037215,1767045931582,451.27,0.00012329,2]
[400037216,1767045942366,170.93,0.00012329,2]
[400037217,1767045952851,854.7,0.00012329,2]
[400037218,1767045995641,2822.2794473,0.00013172,2]
[400037219,1767046065130,5000.0,0.00013172,2]
[400037220,1767046080528,158.71,9.99e-05,2]
[400037221,1767046088632,5000.0,0.00013172,2]
[400037222,1767046112980,5000.0,0.00013172,2]
[400037226,1767046135990,5000.0,0.00013172,2]
[400037227,1767046158919,432.43331344,0.00013172,2]
[400037266,1767046231605,-207.30691018,0.00013224,2]
[400037268,1767046231616,-170.21682228,0.00013274,2]
[400037269,1767046231627,-220.862,0.00013324,2]
[400037272,1767046231637,-881.61429254,0.000135,2]
[400037274,1767046231648,-1376.70538819,0.000135,2]
[400037276,1767046231659,-736.96051,0.000135,2]
[400037308,1767046237663,-43.892627,0.000135,2]
[400037309,1767046237672,-300.0,0.00013586,2]
[400037310,1767046237682,-300.0,0.00013586,2]
[400037311,1767046237691,-300.0,0.00013586,2]
[400037312,1767046237700,-151.0,0.000136,2]
[400037313,1767046237711,-151.0,0.000136,2]
[400037314,1767046237720,-151.0,0.000136,2]
[400037315,1767046237729,-151.0,0.000136,2]
[400037316,1767046237739,-151.0,0.000136,2]
[400037317,1767046237748,-151.0,0.000136,2]
[400037318,1767046237758,-151.0,0.000136,2]
[400037319,1767046237767,-151.0,0.000136,2]
[400037320,1767046237776,-151.0,0.000136,2]
[400037321,1767046237785,-151.0,0.000136,2]
[400037322,1767046237794,-151.0,0.000136,2]
[400037323,1767046237803,-151.0,0.000136,2]
[400037324,1767046237811,-207.65,0.00013693,2]
[400037325,1767046237821,-500.0,0.00013697,2]
[400037326,1767046237830,-500.0,0.00013697,2]
[400037327,1767046237839,-500.0,0.00013697,2]
[400037328,1767046237848,-500.0,0.00013697,2]
[400037329,1767046237857,-500.0,0.00013697,2]
[400037330,1767046237866,-556.29603019,0.00013697,2]
[400037331,1767046237875,-500.0,0.00013697,2]
[400037332,1767046237884,-500.0,0.00013697,2]
[400037333,1767046237894,-242.65699909,0.00013697,2]
[400037334,1767046237903,-500.0,0.00013697,2]
[400037335,1767046237913,-578.55078283,0.00013698,2]
[400037336,1767046237922,-500.0,0.00013698,2]
[400037337,1767046237931,-500.0,0.00013698,2]
[400037338,1767046237940,-500.0,0.00013698,2]
[400037339,1767046237949,-500.0,0.00013698,2]
[400037340,1767046237959,-511.31418948,0.00013698,2]
[400037341,1767046237968,-627.95351682,0.00013698,2]
[400037342,1767046237979,-500.0,0.00013698,2]
[400037343,1767046237988,-500.0,0.00013698,2]
[400037344,1767046237997,-500.0,0.00013698,2]
[400037345,1767046238007,-500.0,0.00013698,2]
[400037346,1767046238016,-500.0,0.00013698,2]
[400037347,1767046238026,-500.0,0.00013698,2]
[400037348,1767046238035,-500.0,0.00013698,2]
[400037349,1767046238045,-500.0,0.00013698,2]
[400037350,1767046238054,-500.0,0.00013698,2]
[400037351,1767046238063,-500.0,0.00013698,2]
[400037352,1767046238073,-500.0,0.00013698,2]
[400037353,1767046238082,-500.0,0.00013698,2]
[400037354,1767046238091,-500.0,0.00013698,2]
[400037355,1767046238249,-500.0,0.00013698,2]
[400037356,1767046238259,-500.0,0.00013698,2]
[400037357,1767046238269,-500.0,0.00013698,2]
[400037358,1767046238278,-500.0,0.00013698,2]
[400037359,1767046238288,-500.0,0.00013698,2]
[400037360,1767046238297,-277.68,0.00013698,2]
[400037361,1767046238306,-500.0,0.00013698,2]
[400037362,1767046238316,-500.0,0.00013698,2]
[400037363,1767046238325,-500.0,0.00013698,2]
[400037364,1767046238334,-500.0,0.00013698,2]
[400037365,1767046238344,-500.0,0.00013698,2]
[400037366,1767046238353,-500.0,0.00013698,2]
[400037367,1767046238363,-500.0,0.00013698,2]
[400037368,1767046238372,-500.0,0.00013698,2]
[400037369,1767046238382,-579.678194,0.00013699,2]
[400037370,1767046238392,-524.454046,0.00013699,2]
[400037371,1767046238402,-500.0,0.00013699,2]
[400037372,1767046238411,-500.0,0.00013699,2]
[400037373,1767046238421,-500.0,0.00013699,2]
[400037374,1767046238431,-580.75858867,0.00013699,2]
[400037375,1767046238440,-500.0,0.00013797,2]
[400037376,1767046238450,-623.26,0.00013797,2]
[400037377,1767046238460,-623.26,0.00013797,2]
[400037378,1767046238474,-623.26,0.00013864,2]
[400037379,1767046238484,-300.0,0.00013867,2]
[400037380,1767046238493,-300.0,0.00013867,2]
[400037381,1767046238502,-300.0,0.00013867,2]
[400037382,1767046238512,-300.0,0.00013867,2]
[400037383,1767046238522,-300.0,0.00013867,2]
[400037384,1767046238531,-300.0,0.00013867,2]
[400037385,1767046238543,-300.0,0.00013867,2]
[400037386,1767046238553,-300.0,0.00013867,2]
[400037387,1767046238562,-300.0,0.00013867,2]
[400037388,1767046238571,-300.0,0.00013867,2]
[400037389,1767046238581,-300.0,0.00013867,2]
[400037390,1767046238590,-300.0,0.00013867,2]
[400037391,1767046238600,-300.0,0.00013867,2]
[400037392,1767046238609,-300.0,0.00013867,2]
[400037393,1767046238618,-300.0,0.00013867,2]
[400037394,1767046238627,-600.0,0.00013867,2]
[400037395,1767046238636,-623.26,0.00013867,2]
[400037396,1767046238646,-623.26,0.00013869,2]
[400037397,1767046238656,-623.26,0.00013869,2]
[400037398,1767046238665,-623.26,0.00013869,2]
[400037399,1767046238674,-623.26,0.00013869,2]
[400037400,1767046238683,-623.26,0.00013869,2]
[400037401,1767046238692,-623.26,0.00013869,2]
[400037402,1767046238701,-623.26,0.00013869,2]
[400037403,1767046238710,-623.26,0.00013869,2]
[400037404,1767046238719,-623.26,0.00013869,2]
[400037405,1767046238728,-623.26,0.00013869,2]
[400037406,1767046238738,-623.26,0.00013869,2]
[400037407,1767046238747,-623.26,0.00013869,2]
[400037408,1767046238757,-623.26,0.00013869,2]
[400037409,1767046238766,-623.26,0.00013869,2]
[400037410,1767046238775,-623.26,0.00013869,2]
[400037411,1767046238784,-623.26,0.00013869,2]
[400037412,1767046238793,-623.26,0.00013869,2]
[400037413,1767046238802,-623.26,0.00013869,2]
[400037414,1767046238811,-623.26,0.00013869,2]
[400037415,1767046238821,-623.4449749,0.00013869,2]
[400037416,1767046238830,-400.0,0.00014247,2]
[400037417,1767046238840,-500.0,0.00014247,2]
[400037418,1767046238849,-1000.0,0.00014247,2]
[400037419,1767046238859,-1000.0,0.00014247,2]
[400037420,1767046238868,-777.60321748,0.00014282,2]
[400037421,1767046238878,-311.48,0.00014316,2]
[400037422,1767046238887,-1500.0,0.00014795,2]
[400037423,1767046238897,-1500.0,0.00014795,2]
[400037424,1767046238906,-420.0,0.0001489,2]
[400037425,1767046238915,-370.35,0.00014928,2]
[400037426,1767046238925,-415.31,0.00014938,2]
[400037427,1767046238935,-65000.0,0.00015,2]
[400037428,1767046238945,-241.032427,0.00015068,2]
[400037429,1767046238954,-720.0,0.00015253,2]
[400037430,1767046238964,-200.85585029,0.00015274,2]
[400037431,1767046238973,-2000.0,0.00015342,2]
[400037432,1767046238983,-2000.0,0.00015342,2]
[400037433,1767046238993,-519.14,0.0001556,2]
[400037434,1767046239002,-1253.24308537,0.00015625,2]
[400037435,1767046239012,-2500.0,0.0001589,2]
[400037436,1767046239021,-2500.0,0.0001589,2]
[400037437,1767046239030,-622.96,0.00016183,2]
[400037438,1767046239040,-587.0,0.0001632,2]
[400037439,1767046239049,-3000.0,0.00016438,2]
[400037440,1767046239058,-3000.0,0.00016438,2]
[400037441,1767046239068,-200.0,0.00016473,2]
[400037442,1767046239078,-864.0,0.00016779,2]
[400037443,1767046239089,-500.0,0.000168,2]
[400037444,1767046239098,-726.79,0.00016805,2]
[400037445,1767046239108,-3500.0,0.00016986,2]
[400037446,1767046239118,-3500.0,0.00016986,2]
[400037447,1767046239127,-55000.0,0.00017,2]
[400037448,1767046239137,-796.8678,0.00017035,2]
[400037449,1767046239146,-231.4948783,0.00017274,2]
[400037450,1767046239156,-830.62,0.00017428,2]
[400037451,1767046239165,-250.0,0.00017473,2]
[400037452,1767046239175,-4000.0,0.00017534,2]
[400037453,1767046239184,-4000.0,0.00017534,2]
[400037454,1767046239194,-278.40277077,0.00017842,2]
[400037455,1767046239204,-823.0,0.00017887,2]
[400037456,1767046239214,-160.0,0.0001796,2]
[400037457,1767046239223,-100000.0,0.0001799,2]
[400037458,1767046239232,-934.44,0.0001805,2]
[400037460,1767046239241,-323.80597779,0.00018082,2]
[400037461,1767046239251,-4500.0,0.00018082,2]
[400037462,1767046239261,-1000.0,0.00018457,2]
[400037463,1767046239270,-271.04640484,0.0001848,2]
[400037464,1767046239280,-241.032427,0.00018493,2]
[400037465,1767046239290,-260.0,0.00018508,2]
[400037466,1767046239299,-1253.24308537,0.00018609,2]
[400037467,1767046239308,-5000.0,0.0001863,2]
[400037468,1767046239318,-1038.27,0.00018673,2]
[400037469,1767046239327,-303.05151664,0.000189,2]
[400037470,1767046239336,-303.05454739,0.000189,2]
[400037471,1767046239346,-45000.0,0.00019,2]
[400037472,1767046239355,-360.0,0.00019056,2]
[400037474,1767046239364,-303.05151664,0.00019089,2]
[400037475,1767046239374,-303.05454739,0.00019089,2]
[400037476,1767046239383,-500.0,0.00019178,2]
[400037477,1767046239393,-500.0,0.00019178,2]
[400037478,1767046239403,-500.0,0.00019178,2]
[400037479,1767046239412,-500.0,0.00019178,2]
[400037481,1767046239421,-500.0,0.00019178,2]
[400037482,1767046239429,-500.0,0.00019178,2]
[400037484,1767046239439,-500.0,0.00019178,2]
[400037485,1767046239447,-500.0,0.00019178,2]
[400037486,1767046239457,-500.0,0.00019178,2]
[400037487,1767046239466,-500.0,0.00019178,2]
[400037488,1767046239475,-413.6278121,0.00019178,2]
[400037490,1767046239484,-5500.0,0.00019178,2]
[400037491,1767046239493,-157.12,0.000192,2]
[400037492,1767046239503,-162.46,0.000192,2]
[400037493,1767046239512,-1822.93,0.000192,2]
[400037494,1767046239522,-11239.3,0.000192,2]
[400037495,1767046239531,-262.13390631,0.00019274,2]
[400037496,1767046239543,-303.05151664,0.00019278,2]
[400037497,1767046239552,-302.80003245,0.00019278,2]
[400037499,1767046239561,-302.46712079,0.00019467,2]
[400037500,1767046239570,-1152.0,0.00019604,2]
[400037501,1767046239579,-460.0,0.00019604,2]
[400037502,1767046239589,-6000.0,0.00019726,2]
[400037504,1767046239598,-160.0,0.00019852,2]
[400037506,1767046239607,-1041.66666667,0.00019854,2]
[400037508,1767046239618,-618.0,0.0002,2]
[400037510,1767046239628,-560.0,0.00020152,2]
[400037512,1767046239637,-524.454046,0.00020187,2]
[400037514,1767046239645,-2192.89424911,0.00020274,2]
[400037516,1767046239654,-1000.0,0.00020302,2]
[400037518,1767046239662,-244.0,0.00020302,2]
[400037520,1767046239672,-169.0,0.00020384,3]
[400037521,1767046239681,-296.4,0.00020514,2]
[400037524,1767046239690,-579.678194,0.00020548,2]
[400037525,1767046239699,-660.0,0.000207,2]
[400037527,1767046239710,-911.06708543,0.000209,2]
[400037529,1767046239719,-911.06708534,0.000209,2]
[400037531,1767046239728,-911.06708534,0.000209,2]
[400037533,1767046239737,-911.06708534,0.000209,2]
[400037535,1767046239746,-911.06708534,0.000209,2]
[400037537,1767046239756,-911.06708534,0.000209,2]
[400037539,1767046239765,-911.06708534,0.000209,2]
[400037542,1767046239775,-911.06708534,0.000209,2]
[400037543,1767046239784,-911.06708534,0.000209,2]
[400037545,1767046239793,-40000.0,0.00021,2]
[400037547,1767046239802,-154.49216669,0.000211,5]
[400037549,1767046239811,-296.4,0.00021195,2]
[400037551,1767046239820,-860.0,0.00021248,2]
[400037553,1767046239829,-292.77293432,0.00021274,2]
[400037555,1767046239838,-606.0,0.00021487,2]
[400037557,1767046239847,-1253.24308537,0.00021593,2]
[400037559,1767046239856,-500.0,0.00021803,2]
[400037561,1767046239865,-911.06708534,0.00021817,2]
[400037563,1767046239876,-296.4,0.00021875,2]
[400037566,1767046239885,-500.0,0.00021917,2]
[400037568,1767046239895,-1354.10611933,0.00021917,2]
[400037570,1767046239904,-277.6938934,0.00021917,2]
[400037572,1767046239913,-240.99321294,0.00021917,2]
[400037574,1767046239923,-486.28780482,0.00021917,2]
[400037576,1767046239931,-511.89011642,0.00021917,2]
[400037578,1767046239940,-424.72070765,0.00021917,2]
[400037580,1767046239949,-449.82536442,0.00021917,2]
[400037581,1767046239959,-327.50837283,0.00021917,2]
[400037583,1767046239968,-205.57380574,0.00021917,2]
[400037586,1767046239977,-214.56132807,0.00021917,2]
[400037587,1767046239987,-278.49487928,0.00021917,2]
[400037590,1767046239996,-487.86563401,0.00021917,2]
[400037592,1767046240006,-372.81822915,0.00021917,2]
[400037593,1767046240015,-327.08881678,0.00021917,2]
[400037595,1767046240024,-252.80567883,0.00021917,2]
[400037598,1767046240034,-500.0,0.00021917,2]
[400037599,1767046240043,-231.26445658,0.00021917,2]
[400037601,1767046240052,-288.23939754,0.00021917,2]
[400037604,1767046240061,-477.19724969,0.00021917,2]
[400037606,1767046240071,-161.30574498,0.00021917,2]
[400037607,1767046240081,-486.66236312,0.00021917,2]
[400037610,1767046240090,-370.21932107,0.00021917,2]
[400037611,1767046240099,-410.54004209,0.00021917,2]
[400037613,1767046240108,-446.11338356,0.00021917,2]
[400037615,1767046240117,-461.30514034,0.00021917,2]
[400037617,1767046240127,-459.55961902,0.00021917,2]
[400037619,1767046240137,-170.04860205,0.00021917,2]
[400037622,1767046240147,-229.00132958,0.00021917,2]
[400037624,1767046240156,-346.19948498,0.00021917,2]
[400037626,1767046240165,-229.40932393,0.00021917,2]
[400037627,1767046240174,-395.71561786,0.00021917,2]
[400037628,1767046240184,-495.94160882,0.00021917,2]
[400037629,1767046240192,-500.0,0.00021917,2]
[400037630,1767046240202,-241.60322333,0.00021917,2]
[400037631,1767046240211,-500.0,0.00021917,2]
[400037632,1767046240220,-430.81365295,0.00021917,2]
[400037633,1767046240229,-500.0,0.00021917,2]
[400037634,1767046240238,-500.0,0.00021917,2]
[400037635,1767046240248,-500.0,0.00021917,2]
[400037636,1767046240256,-500.0,0.00021917,2]
[400037637,1767046240265,-500.0,0.00021917,2]
[400037638,1767046240275,-512.09352173,0.00021917,2]
[400037639,1767046240284,-496.33962389,0.00021917,2]
[400037640,1767046240293,-184.33391286,0.00021917,2]
[400037641,1767046240302,-488.28774234,0.00021917,2]
[400037642,1767046240311,-273.51615063,0.00021917,2]
[400037643,1767046240320,-178.50369212,0.00021917,2]
[400037644,1767046240329,-406.98709601,0.00021917,2]
[400037645,1767046240338,-370.63190419,0.00021917,2]
[400037646,1767046240348,-496.98851051,0.00021917,2]
[400037647,1767046240358,-255.36194022,0.00021917,2]
[400037649,1767046240367,-500.0,0.00021917,2]
[400037651,1767046240376,-456.75047125,0.00021917,2]
[400037653,1767046240385,-250.86157752,0.00021917,2]
[400037655,1767046240395,-538.10671884,0.00021917,2]
[400037657,1767046240404,-529.67556435,0.00021917,2]
[400037659,1767046240413,-500.0,0.00021917,2]
[400037661,1767046240422,-501.7554646,0.00021917,2]
[400037663,1767046240431,-500.0,0.00021917,2]
[400037665,1767046240440,-228.09003205,0.00021917,2]
[400037667,1767046240450,-239.31624536,0.00021917,2]
[400037669,1767046240460,-434.26386451,0.00021917,2]
[400037671,1767046240468,-488.48967991,0.00021917,2]
[400037673,1767046240478,-500.0,0.00021917,2]
[400037675,1767046240487,-358.42368919,0.00021917,2]
[400037677,1767046240496,-268.64102064,0.00021917,2]
[400037679,1767046240505,-421.70731069,0.00021917,2]
[400037681,1767046240514,-500.0,0.00021917,2]
[400037683,1767046240522,-471.93883825,0.00021917,2]
[400037685,1767046240532,-182.03330599,0.00021917,2]
[400037687,1767046240543,-231.02510062,0.00021917,2]
[400037689,1767046240552,-294.57638844,0.00021917,2]
[400037691,1767046240563,-486.63011465,0.00021917,2]
[400037693,1767046240572,-331.17439079,0.00021917,2]
[400037695,1767046240581,-178.31606175,0.00021917,2]
[400037697,1767046240590,-480.20810443,0.00021917,2]
[400037699,1767046240600,-500.0,0.00021917,2]
[400037701,1767046240609,-315.15556904,0.00021917,2]
[400037703,1767046240618,-501.19543339,0.00021917,2]
[400037705,1767046240628,-194.87945958,0.00021917,2]
[400037708,1767046240639,-268.15903385,0.00021917,2]
[400037710,1767046240648,-231.94031787,0.00021917,2]
[400037712,1767046240657,-429.41639559,0.00021917,2]
[400037714,1767046240667,-579.90981318,0.00021917,2]
[400037716,1767046240676,-338.3045025,0.00021917,2]
[400037718,1767046240685,-199.50718454,0.00021917,2]
[400037719,1767046240694,-222.57135866,0.00021917,2]
[400037721,1767046240704,-332.28303991,0.00021917,2]
[400037723,1767046240713,-429.31446917,0.00021917,2]
[400037725,1767046240722,-391.3718607,0.00021917,2]
[400037726,1767046240730,-407.47489559,0.00021917,2]
[400037728,1767046240740,-210.28506365,0.00021917,2]
[400037730,1767046240749,-316.49095567,0.00021917,2]
[400037734,1767046240854,-282.47239194,0.00021917,2]
[400037735,1767046240866,-456.52226619,0.00021917,2]
[400037736,1767046240875,-168.52666437,0.00021917,2]
[400037737,1767046240885,-230.11756583,0.00021917,2]
[400037738,1767046240894,-262.87676403,0.00021917,2]
[400037739,1767046240903,-478.6229675,0.00021917,2]
[400037740,1767046240912,-236.94054092,0.00021917,2]
[400037741,1767046240922,-494.78835906,0.00021917,2]
[400037742,1767046240931,-500.0,0.00021917,2]
[400037743,1767046240940,-405.47737161,0.00021917,2]
[400037744,1767046240949,-268.16933491,0.00021917,2]
[400037745,1767046240959,-281.44204914,0.00021917,2]
[400037746,1767046240968,-498.08828265,0.00021917,2]
[400037747,1767046240977,-622.69121472,0.00021917,2]
[400037748,1767046240986,-500.0,0.00021917,2]
[400037749,1767046240996,-172.9864347,0.00021917,2]
[400037750,1767046241005,-278.49623661,0.00021917,2]
[400037751,1767046241015,-500.0,0.00021917,2]
[400037752,1767046241024,-333.56161096,0.00021917,2]
[400037753,1767046241033,-893.04,0.00021917,2]
[400037754,1767046241043,-249.77890113,0.00021917,2]
[400037755,1767046241052,-273.04367163,0.00021917,2]
[400037756,1767046241063,-350.93019086,0.00021917,2]
[400037757,1767046241072,-287.89513794,0.00021917,2]
[400037758,1767046241081,-507.26557414,0.00021917,2]
[400037759,1767046241091,-250.55772468,0.00021917,2]
[400037760,1767046241100,-225.73156657,0.00021917,2]
[400037761,1767046241110,-423.95359119,0.00021917,2]
[400037762,1767046241119,-500.0,0.00021917,2]
[400037763,1767046241129,-250.41947489,0.00021917,2]
[400037764,1767046241139,-500.0,0.00021917,2]
[400037765,1767046241148,-500.0,0.00021917,2]
[400037766,1767046241157,-195.74438465,0.00021917,2]
[400037767,1767046241167,-472.97678502,0.00021917,2]
[400037768,1767046241177,-447.25692417,0.00021917,2]
[400037769,1767046241186,-460.77258881,0.00021917,2]
[400037770,1767046241195,-426.86495862,0.00021917,2]
[400037771,1767046241205,-276.96921568,0.00021917,2]
[400037772,1767046241214,-264.5012368,0.00021917,2]
[400037773,1767046241223,-429.68058131,0.00021917,2]
[400037774,1767046241232,-500.99596563,0.00021917,2]